bitfinex/quotes_SOLUSD_20250417
["timestamp","ask_amount","ask_price","bid_price","bid_amount"]
[1744849493693,82.8,130.87,130.85,17.98059973]
[1744849493889,82.8,130.87,130.86,17.98059973]
[1744849494100,0.063,130.88,130.86,17.98059973]
[1744849494101,0.063,130.88,130.86,25.62235427]
[1744849494403,0.063,130.88,130.87,17.98059973]
[1744849496106,0.063,130.91,130.87,25.62177035]
[1744849496307,0.063,130.91,130.9,17.98059973]
[1744849497093,0.063,130.91,130.9,24.08629973]
[1744849497812,0.063,130.91,130.9,31.72571913]
[1744849499911,0.063,130.91,130.9,51.34161886]
[1744849500207,82.8,130.97,130.9,96.44016737]
[1744849500414,82.8,130.97,130.96,17.98059973]
[1744849500710,82.8,130.99,130.96,17.98059973]
[1744849500912,82.8,131.02,130.98,17.98059973]
[1744849501115,82.8,131.02,131.0,17.98059973]
[1744849501615,82.8,131.02,131.01,17.98059973]
[1744849501996,17.98059973,131.05,131.01,25.6135016]
[1744849501997,82.8,131.05,131.01,25.6135016]
[1744849502311,82.8,131.05,131.03,17.98059973]
[1744849502533,90.43073089,131.05,131.03,17.98059973]
[1744849502723,82.8,131.05,131.02,17.98059973]
[1744849503427,82.863,131.05,131.02,17.98059973]
[1744849503733,0.063,131.05,131.03,17.98059973]
[1744849504218,0.063,131.05,131.04,17.98059973]
[1744849504719,0.063,131.05,130.99,41.9]
[1744849504918,0.063,131.05,131.01,17.98059973]
[1744849505136,0.063,131.05,131.03,17.98059973]
[1744849505333,0.063,131.05,131.04,17.98059973]
[1744849505695,0.063,131.05,131.04,35.96119946]
[1744849505998,0.063,131.05,131.04,17.98059973]
[1744849506197,0.063,131.05,131.04,43.59245709]
[1744849506432,0.063,131.1,131.09,17.98059973]
[1744849507195,0.063,131.11,131.09,59.55879946]
[1744849507395,0.063,131.12,131.11,61.96119946]
[1744849507600,0.063,131.12,131.11,43.98059973]
[1744849507899,0.063,131.12,131.11,61.96119946]
[1744849508208,0.063,131.12,131.11,69.58838274]
[1744849508409,0.063,131.12,131.11,51.60778301]
[1744849508714,0.063,131.12,131.11,69.58838274]
[1744849509508,0.063,131.12,131.11,51.60778301]
[1744849509819,0.063,131.12,131.11,43.98059973]
[1744849510209,0.063,131.12,131.11,17.98059973]
[1744849513222,0.063,131.12,131.11,28.65036481]
[1744849513825,0.063,131.12,131.11,36.27754809]
[1744849515424,0.063,131.12,131.1,26.0]
[1744849515618,0.063,131.12,131.11,28.65036481]
[1744849515814,0.063,131.12,131.09,23.52824911]
[1744849516015,0.063,131.12,131.1,28.65036481]
[1744849516214,0.063,131.12,131.11,28.65036481]
[1744849520542,0.063,131.12,131.09,23.52811818]
[1744849520717,0.063,131.12,131.1,28.65036481]
[1744849523950,0.063,131.12,131.11,28.65036481]
[1744849527141,28.71336481,131.12,131.05,7.675]
[1744849527437,28.65036481,131.08,131.02,7.63219517]
[1744849527615,82.8,131.07,131.03,28.65036481]
[1744849527815,82.8,131.07,131.05,0.063]
[1744849528447,90.42953477,131.07,131.05,0.063]
[1744849528618,82.8,131.07,131.05,28.71336481]
[1744849529715,82.8,131.07,131.06,28.65036481]
[1744849530030,82.8,131.1,131.06,28.65036481]
[1744849530232,82.8,131.1,131.08,28.65036481]
[1744849530742,82.8,131.1,131.09,28.65036481]
[1744849531854,82.8,131.1,131.05,0.063]
[1744849532145,82.8,131.09,131.06,28.65036481]
[1744849532639,82.8,131.09,131.07,28.65036481]
[1744849532947,82.8,131.09,131.08,28.65036481]
[1744849533144,82.8,131.09,131.08,17.91804429]
[1744849533964,82.8,131.09,131.07,17.91804429]
[1744849535044,82.8,131.09,131.08,17.91804429]
[1744849536439,82.8,131.11,131.08,17.91804429]
[1744849536636,82.8,131.11,131.1,17.91804429]
[1744849537156,0.063,131.12,131.1,17.91804429]
[1744849537455,0.063,131.12,131.11,17.91804429]
[1744849538055,0.063,131.12,131.08,54.22969822]
[1744849538264,0.063,131.12,131.11,17.91804429]
[1744849539646,0.063,131.12,131.11,25.54522757]
[1744849539956,0.063,131.12,131.11,17.91804429]
[1744849544061,0.063,131.12,131.11,25.54522757]
[1744849544552,0.063,131.12,131.11,43.46327186]
[1744849546169,0.063,131.13,131.11,69.46327186]
[1744849546465,0.063,131.13,131.12,17.91804429]
[1744849547957,0.063,131.13,131.12,25.54464587]
[1744849552267,0.063,131.15,131.12,44.61114983]
[1744849552456,0.063,131.15,131.14,17.91804429]
[1744849554162,0.063,131.15,131.14,43.91804429]
[1744849554374,0.063,131.15,131.14,51.54348275]
[1744849557877,0.063,131.16,131.14,51.54348275]
[1744849558060,0.063,131.16,131.15,17.91804429]
[1744849558252,0.063,131.18,131.15,17.91804429]
[1744849558575,0.063,131.18,131.17,61.83608858]
[1744849558873,0.063,131.18,131.17,17.91804429]
[1744849559072,0.063,131.18,131.17,43.91804429]
[1744849559975,0.063,131.18,131.17,51.54173873]
[1744849564879,0.063,131.18,131.14,42.2]
[1744849565070,0.063,131.18,131.17,17.91804429]
[1744849566498,0.063,131.18,131.17,70.19138759]
[1744849566774,0.063,131.19,131.18,35.83608858]
[1744849568280,0.063,131.19,131.18,43.45920185]
[1744849572288,82.863,131.23,131.18,62.51698504]
[1744849572497,82.863,131.23,131.22,17.91804429]
[1744849573496,0.063,131.23,131.22,17.91804429]
[1744849573700,0.063,131.24,131.22,43.91804429]
[1744849573901,0.063,131.24,131.23,17.91804429]
[1744849574466,0.063,131.25,131.23,62.10594623]
[1744849574685,0.063,131.25,131.24,17.91804429]
[1744849574884,0.063,131.25,131.23,7.62020879]
[1744849575103,0.063,131.25,131.24,17.91804429]
[1744849578670,0.063,131.25,131.2,7.62168748]
[1744849578870,0.063,131.25,131.24,17.91804429]
[1744849580573,0.063,131.25,131.22,17.91804429]
[1744849581104,0.063,131.25,131.21,17.91804429]
[1744849582502,0.063,131.25,131.23,17.91804429]
[1744849582704,0.063,131.25,131.24,17.91804429]
[1744849583282,82.863,131.25,131.24,17.91804429]
[1744849586620,0.063,131.25,131.24,43.45571674]
[1744849586790,0.03,131.27,131.24,62.50478714]
[1744849586991,0.063,131.28,131.26,43.91804429]
[1744849587196,0.063,131.3,131.29,26.0]
[1744849587374,0.063,131.3,131.29,43.91804429]
[1744849587579,0.063,131.3,131.29,17.91804429]
[1744849588394,0.063,131.3,131.29,25.53477062]
[1744849588578,0.063,131.3,131.29,51.53477062]
[1744849592300,0.063,131.3,131.29,43.91804429]
[1744849592497,0.063,131.3,131.29,17.91804429]
[1744849594498,0.063,131.3,131.29,25.53477062]
[1744849595094,0.063,131.31,131.29,41.61477062]
[1744849595391,0.063,131.31,131.3,17.91804429]
[1744849598399,0.063,131.32,131.31,25.5336105]
[1744849600904,0.063,131.32,131.31,17.91804429]
[1744849605542,0.063,131.32,131.3,17.91804429]
[1744849605709,0.063,131.32,131.31,17.91804429]
[1744849606722,0.063,131.32,131.31,25.5336105]
[1744849607304,0.063,131.32,131.31,43.45165479]
[1744849607841,0.063,131.32,131.31,25.5336105]
[1744849608001,0.063,131.32,131.31,69.45165479]
[1744849608521,0.063,131.32,131.31,51.5336105]
[1744849608900,0.063,131.32,131.31,43.91804429]
[1744849609100,0.063,131.32,131.31,17.91804429]
[1744849611528,0.063,131.32,131.31,69.45165479]
[1744849612016,0.063,131.33,131.31,69.45165479]
[1744849612221,0.063,131.33,131.32,35.83608858]
[1744849612810,0.03,131.36,131.32,37.49768858]
[1744849613010,0.03,131.36,131.35,17.91804429]
[1744849614013,0.03,131.36,131.35,25.53129133]
[1744849615108,0.03,131.38,131.35,25.53129133]
[1744849615314,0.03,131.38,131.37,17.91804429]
[1744849616026,0.03,131.38,131.37,25.53013228]
[1744849616220,0.03,131.38,131.33,0.42648471]
[1744849616221,0.03,131.38,131.32,73.34575035]
[1744849616415,0.03,131.38,131.37,17.91804429]
[1744849619338,0.03,131.38,131.37,25.53013228]
[1744849620535,0.03,131.38,131.37,17.91804429]
[1744849620732,0.03,131.38,131.37,25.53013228]
[1744849621343,0.03,131.39,131.37,69.44817657]
[1744849621537,0.03,131.39,131.38,25.52955289]
[1744849622344,0.03,131.39,131.38,44.96289718]
[1744849622635,0.03,131.39,131.38,25.52955289]
[1744849625244,0.03,131.39,131.38,43.44759718]
[1744849625840,0.03,131.39,131.38,25.52955289]
[1744849626041,0.03,131.44,131.38,43.44759718]
[1744849626342,0.03,131.44,131.43,17.91804429]
[1744849627365,0.03,131.45,131.44,33.60803408]
[1744849627640,0.03,131.45,131.44,51.52607837]
[1744849628045,0.03,131.45,131.44,25.52607837]
[1744849630726,0.03,131.45,131.44,62.52025623]
[1744849631829,0.03,131.46,131.45,19.07613357]
[1744849632131,0.03,131.46,131.45,54.91222215]
[1744849632337,6.5124,131.51,131.46,7.60687661]
[1744849632530,89.3124,131.51,131.5,17.91804429]
[1744849634549,89.3424,131.51,131.5,17.91804429]
[1744849635342,96.94655516,131.51,131.48,17.91804429]
[1744849635954,96.94655516,131.51,131.49,17.91804429]
[1744849636152,82.8,131.5,131.49,17.91804429]
[1744849636852,90.40461071,131.5,131.45,33.60722018]
[1744849637056,82.8,131.49,131.48,17.91804429]
[1744849637643,82.8,131.49,131.45,33.60722018]
[1744849637945,82.8,131.48,131.47,17.91804429]
[1744849638937,82.8,131.48,131.46,17.91804429]
[1744849639142,82.8,131.48,131.44,7.6077986]
[1744849639143,108.32377982,131.48,131.4,7.61035007]
[1744849639456,1.6292,131.46,131.42,17.91804429]
[1744849640034,6.4935,131.45,131.41,17.91804429]
[1744849640245,82.8,131.44,131.41,17.91804429]
[1744849640446,90.40848339,131.44,131.41,17.91804429]
[1744849640665,17.91804429,131.42,131.33,7.61440645]
[1744849640887,17.91804429,131.4,131.34,34.12]
[1744849641044,17.91804429,131.4,131.36,17.91804429]
[1744849641245,100.71804429,131.4,131.36,17.91804429]
[1744849641450,96.90108639,131.45,131.39,17.91804429]
[1744849641654,122.90108639,131.45,131.42,17.91804429]
[1744849642566,122.90108639,131.45,131.37,26.0]
[1744849642567,88.8754,131.5,131.44,17.91804429]
[1744849642762,1.5442,131.51,131.49,17.91804429]
[1744849643070,1.5442,131.51,131.5,17.91804429]
[1744849643071,0.03,131.51,131.5,17.91804429]
[1744849643238,0.03,131.51,131.44,19.07613357]
[1744849643438,0.03,131.51,131.49,17.91804429]
[1744849644360,0.03,131.51,131.48,17.91804429]
[1744849645263,0.03,131.51,131.49,28.49328738]
[1744849645469,0.03,131.51,131.5,28.49328738]
[1744849648163,0.03,131.51,131.49,7.60493294]
[1744849648338,0.03,131.51,131.5,28.49328738]
[1744849648659,0.03,131.51,131.5,36.09785011]
[1744849652465,0.03,131.53,131.5,55.10925695]
[1744849652641,0.03,131.53,131.52,82.98657476]
[1744849653546,0.03,131.53,131.52,90.58998108]
[1744849653755,0.03,131.53,131.52,62.0966937]
[1744849655862,0.03,131.53,131.52,94.36657681]
[1744849662754,0.03,131.57,131.52,113.37509262]
[1744849662955,0.03,131.57,131.52,33.60340632]
[1744849663153,0.03,131.57,131.54,28.49328738]
[1744849663570,36.71718738,131.55,131.5,16.46]
[1744849663776,36.71718738,131.55,131.47,26.62081424]
[1744849663966,82.8,131.54,131.5,28.49328738]
[1744849664270,82.8,131.53,131.5,28.49328738]
[1744849664474,82.8,131.53,131.51,28.49328738]
[1744849665266,82.8,131.53,131.51,17.80198035]
[1744849668075,82.8,131.53,131.52,17.80198035]
[1744849668275,15.82583998,131.55,131.52,17.80198035]
[1744849669763,8.2239,131.55,131.52,17.80198035]
[1744849670163,8.2239,131.55,131.53,17.80198035]
[1744849670365,82.8,131.54,131.53,17.80198035]
[1744849672280,82.8,131.54,131.52,17.80198035]
[1744849673268,82.8,131.54,131.49,7.60514107]
[1744849673475,82.8,131.53,131.51,17.80198035]
[1744849673670,82.8,131.53,131.5,17.80198035]
[1744849673859,90.40360074,131.52,131.47,7.60603225]
[1744849674061,109.76388109,131.52,131.47,7.60603225]
[1744849674259,82.8,131.51,131.47,17.80198035]
[1744849674459,82.8,131.5,131.48,17.80198035]
[1744849675780,82.8,131.5,131.41,18.64964886]
[1744849675781,150.34964886,131.49,131.4,0.063]
[1744849675965,19.07613357,131.4,131.34,17.80198035]
[1744849676164,62.45162921,131.41,131.32,25.93198834]
[1744849676165,36.87811392,131.38,131.32,25.93198834]
[1744849676375,17.80198035,131.37,131.32,8.13000799]
[1744849676596,43.80198035,131.38,131.32,25.93198834]
[1744849676880,6.0763,131.39,131.34,17.80198035]
[1744849677076,26.0,131.4,131.36,17.80198035]
[1744849677281,17.80198035,131.39,131.34,17.80198035]
[1744849677576,26.0,131.4,131.35,17.80198035]
[1744849677781,7.61113155,131.39,131.35,17.80198035]
[1744849677983,25.4131119,131.39,131.34,17.80198035]
[1744849678371,7.61113155,131.39,131.35,17.80198035]
[1744849679091,7.61113155,131.39,131.36,17.80198035]
[1744849679283,7.61113155,131.39,131.36,28.54354837]
[1744849679485,7.61113155,131.39,131.35,28.54354837]
[1744849679676,7.61113155,131.39,131.36,28.54354837]
[1744849679881,16.44,131.41,131.36,28.54354837]
[1744849680080,7.61045992,131.4,131.37,28.54354837]
[1744849680773,7.61045992,131.4,131.36,28.54354837]
[1744849681490,28.54354837,131.39,131.34,28.54354837]
[1744849681786,7.6115086,131.38,131.34,28.54354837]
[1744849682586,28.54354837,131.35,131.32,0.063]
[1744849682769,82.8,131.34,131.32,0.063]
[1744849683090,82.8,131.34,131.32,28.60654837]
[1744849683766,82.8,131.34,131.33,28.54354837]
[1744849684183,82.8,131.34,131.32,28.60654837]
[1744849684468,82.8,131.34,131.32,0.063]
[1744849684892,90.41386875,131.34,131.32,0.063]
[1744849685264,28.54354837,131.33,131.32,0.063]
[1744849685991,36.15795482,131.33,131.32,0.063]
[1744849687091,7.61440645,131.33,131.32,0.063]
[1744849688293,36.15795482,131.33,131.32,0.063]
[1744849689985,7.6138267,131.34,131.32,0.063]
[1744849692798,28.54354837,131.33,131.32,0.063]
[1744849694109,36.15795482,131.33,131.32,0.063]
[1744849694298,55.23408839,131.33,131.32,0.063]
[1744849694503,81.23408839,131.33,131.32,0.063]
[1744849695796,82.674,131.31,131.26,0.063]
[1744849695990,28.54354837,131.27,131.26,0.063]
[1744849696184,36.16143516,131.27,131.26,0.063]
[1744849696894,7.61788679,131.27,131.26,0.063]
[1744849697598,36.16143516,131.27,131.26,0.063]
[1744849697909,81.23756873,131.27,131.26,1e-08]
[1744849700703,82.73699999,131.25,131.23,0.063]
[1744849700875,111.28054836,131.24,131.23,0.063]
[1744849701277,47.61968194,131.24,131.23,0.063]
[1744849701500,73.61968194,131.24,131.22,0.063]
[1744849701689,28.54354837,131.23,131.22,0.063]
[1744849701891,19.07613357,131.22,131.19,0.063]
[1744849702198,47.61968194,131.2,131.19,0.063]
[1744849702604,47.61968194,131.2,131.19,1e-08]
[1744849702784,26.0,131.18,131.17,0.063]
[1744849703108,102.16323031,131.18,131.17,1e-08]
[1744849703786,44.64964886,131.15,131.14,0.063]
[1744849703985,90.05968194,131.15,131.14,0.063]
[1744849704912,79.03489011,131.15,131.14,0.063]
[1744849705403,42.44,131.15,131.14,0.063]
[1744849706504,78.6084054,131.15,131.14,0.063]
[1744849706698,70.98354837,131.15,131.14,0.063]
[1744849708711,78.6084054,131.15,131.14,0.063]
[1744849708910,97.68453897,131.15,131.14,0.063]
[1744849710712,97.68453897,131.15,131.14,1e-08]
[1744849710893,19.07613357,131.14,131.12,1e-08]
[1744849711089,76.16323031,131.13,131.12,1e-08]
[1744849711403,19.07613357,131.12,131.11,1e-08]
[1744849711597,26.0,131.09,131.05,0.063]
[1744849711798,73.19319723,131.06,131.05,0.063]
[1744849712011,74.61968194,131.06,131.05,0.063]
[1744849712193,73.61968194,131.06,131.05,0.063]
[1744849712915,81.24977502,131.06,131.05,0.063]
[1744849714420,62.60012616,131.06,131.05,0.063]
[1744849714913,24.06914336,131.08,131.05,0.063]
[1744849715100,52.61269173,131.08,131.05,0.063]
[1744849715303,28.54354837,131.1,131.05,28.60654837]
[1744849715502,54.54354837,131.1,131.05,28.60654837]
[1744849715901,28.54354837,131.1,131.05,28.60654837]
[1744849716118,36.17132681,131.1,131.05,36.23706446]
[1744849716412,280.24,131.11,131.08,28.54354837]
[1744849716413,16.5,131.11,131.08,28.54354837]
[1744849716633,52.67083476,131.11,131.06,28.54354837]
[1744849717001,28.54354837,131.1,131.05,42.31986446]
[1744849717402,28.54354837,131.08,131.05,0.063]
[1744849717614,28.54354837,131.07,131.05,0.063]
[1744849718018,28.54354837,131.06,131.05,0.063]
[1744849718211,52.67364145,131.06,131.05,0.063]
[1744849719522,24.13009308,131.06,131.05,0.063]
[1744849720023,16.5,131.06,131.05,0.063]
[1744849720210,82.8,131.07,131.05,28.60654837]
[1744849720722,82.8,131.07,131.05,0.063]
[1744849720930,111.34354837,131.06,131.05,0.063]
[1744849721601,82.8,131.06,131.05,0.063]
[1744849725119,90.42857762,131.09,131.05,28.60654837]
[1744849725309,90.42857762,131.09,131.06,28.54354837]
[1744849725310,82.8,131.09,131.06,28.54354837]
[1744849725507,90.42843019,131.09,131.06,28.54354837]
[1744849725723,111.34354837,131.08,131.05,0.063]
[1744849726702,7.62951094,131.07,131.05,0.063]
[1744849726904,36.17305931,131.07,131.05,0.063]
[1744849728031,146.91968194,131.06,131.05,0.063]
[1744849728205,64.11968194,131.06,131.05,0.063]
[1744849728700,71.74977502,131.06,131.05,0.063]
[1744849730327,24.55657779,131.06,131.05,0.063]
[1744849730618,52.67364145,131.06,131.05,0.063]
[1744849731112,24.13009308,131.06,131.05,0.063]
[1744849731310,45.07613357,131.03,131.0,0.063]
[1744849731510,26.28432314,130.98,130.97,0.063]
[1744849731711,118.66323031,130.98,130.97,1e-08]
[1744849732405,126.2979837,130.98,130.97,1e-08]
[1744849733021,33.63475339,130.98,130.97,1e-08]
[1744849733434,7.63475339,130.98,130.97,1e-08]
[1744849734320,36.60478647,130.98,130.97,1e-08]
[1744849737226,36.17830176,130.98,130.97,1e-08]
[1744849739826,7.63417054,130.99,130.97,1e-08]
[1744849740033,33.63382613,131.0,130.97,1e-08]
[1744849740213,16.52,131.06,130.99,28.54354837]
[1744849740411,45.06354837,131.06,131.01,28.54354837]
[1744849740631,28.54354837,131.04,130.99,28.54354837]
[1744849740844,28.54354837,131.02,130.97,28.54354838]
[1744849741337,36.17422368,131.05,131.0,28.54354837]
[1744849741653,90.43067531,131.05,131.01,28.54354837]
[1744849744651,54.54354837,131.02,130.97,1e-08]
[1744849744824,16.98648471,131.01,130.97,1e-08]
[1744849745135,28.54354837,130.98,130.97,1e-08]
[1744849745336,28.54354837,131.0,130.97,1e-08]
[1744849745650,45.53003308,131.01,130.97,1e-08]
[1744849746024,36.17713615,131.0,130.97,1e-08]
[1744849748244,28.54354837,130.98,130.97,1e-08]
[1744849748536,47.61968194,130.98,130.97,1e-08]
[1744849748753,76.16323031,130.98,130.97,1e-08]
[1744849749259,83.7979837,130.98,130.97,1e-08]
[1744849749948,44.64964886,130.96,130.95,1e-08]
[1744849750134,90.17968194,130.96,130.95,1e-08]
[1744849750830,19.07613357,130.95,130.91,0.063]
[1744849751142,26.0,130.93,130.91,0.063]
[1744849751322,7.63825236,130.92,130.91,0.063]
[1744849751667,7.63708568,130.94,130.91,0.063]
[1744849751940,36.18063405,130.94,130.91,0.063]
[1744849752114,7.63708568,130.94,130.91,0.063]
[1744849752317,16.56,131.0,130.93,28.54354837]
[1744849752523,45.10354837,131.0,130.94,28.54354837]
[1744849752723,71.10354837,131.0,130.94,28.54354837]
[1744849753341,78.7375851,131.0,130.94,36.18055009]
[1744849753642,78.7375851,131.0,130.94,28.54354837]
[1744849753842,52.7375851,131.0,130.95,28.54354837]
[1744849754847,52.7375851,131.0,130.95,36.17993945]
[1744849755746,82.8,130.99,130.95,36.17993945]
[1744849757226,90.43425323,130.99,130.95,28.54354837]
[1744849757423,90.43425323,130.99,130.95,36.17998011]
[1744849757627,111.34354837,130.98,130.93,7.6031]
[1744849757840,111.34354837,130.98,130.93,36.14664837]
[1744849758146,28.54354837,130.96,130.91,28.60654837]
[1744849758350,82.8,130.95,130.91,28.60654837]
[1744849758548,82.8,130.94,130.91,0.063]
[1744849759357,82.8,130.94,130.91,28.60654837]
[1744849759542,82.8,130.94,130.93,28.54354837]
[1744849761259,82.8,130.98,130.93,36.18121735]
[1744849761450,82.8,130.98,130.96,28.54354837]
[1744849762862,82.8,130.98,130.95,28.54354837]
[1744849764553,82.8,130.97,130.94,28.54354837]
[1744849764935,82.8,130.96,130.94,28.54354837]
[1744849765135,82.8,130.96,130.95,28.54354837]
[1744849765470,82.8,130.99,130.95,28.54354837]
[1744849765638,82.8,130.99,130.98,28.54354837]
[1744849766038,82.8,130.99,130.97,28.54354837]
[1744849768366,23.02328471,131.04,130.97,28.54354837]
[1744849768367,0.063,131.12,131.06,26.0]
[1744849768665,0.063,131.14,131.12,18.64964886]
[1744849768868,0.03,131.21,131.16,18.64964886]
[1744849769035,0.03,131.21,131.19,28.54354837]
[1744849769234,0.03,131.21,131.19,42.26424639]
[1744849769675,0.03,131.21,131.16,18.64964886]
[1744849769957,0.03,131.21,131.19,42.26424639]
[1744849770651,0.03,131.21,131.19,49.88677859]
[1744849772262,0.03,131.21,131.18,7.62293665]
[1744849772438,0.03,131.21,131.19,42.26424639]
[1744849772745,0.03,131.21,131.18,42.26424639]
[1744849772950,0.03,131.21,131.17,7.62357503]
[1744849773152,0.03,131.21,131.18,42.26424639]
[1744849773537,82.8,131.19,131.13,45.06385282]
[1744849773761,42.29424639,131.21,131.16,42.26424639]
[1744849773762,82.8,131.18,131.16,42.26424639]
[1744849773960,82.8,131.17,131.16,42.26424639]
[1744849774351,82.8,131.17,131.14,42.26424639]
[1744849775761,82.8,131.16,131.14,42.26424639]
[1744849777662,82.8,131.16,131.14,49.88966982]
[1744849778634,29.85078415,131.16,131.14,49.88966982]
[1744849780565,29.85078415,131.16,131.15,42.26424639]
[1744849780865,29.85078415,131.16,131.14,49.88966982]
[1744849781979,29.85078415,131.16,131.15,42.26424639]
[1744849782868,112.65078415,131.16,131.15,42.26424639]
[1744849785362,112.65078415,131.16,131.15,49.88910342]
[1744849787775,112.65078415,131.16,131.15,58.39910342]
[1744849789278,112.65078415,131.16,131.15,44.76663158]
[1744849789879,43.82473676,131.16,131.15,44.76663158]
[1744849792262,0.15259424,131.2,131.15,44.76663158]
[1744849792263,43.82473676,131.19,131.15,44.76663158]
[1744849792463,0.15259424,131.2,131.18,57.2635491]
[1744849792764,0.15259424,131.2,131.19,28.63177455]
[1744849793791,0.15259424,131.2,131.19,54.90395561]
[1744849793973,0.15259424,131.2,131.19,36.25430675]
[1744849795571,0.15259424,131.2,131.19,54.90395561]
[1744849796788,0.03,131.21,131.2,18.64964886]
[1744849796974,0.03,131.21,131.2,47.28142341]
[1744849797882,0.03,131.21,131.2,54.90337462]
[1744849798269,0.03,131.21,131.2,36.25372576]
[1744849799768,0.063,131.22,131.2,54.90337462]
[1744849799965,0.063,131.22,131.21,47.28142341]
[1744849801091,0.063,131.24,131.21,47.28142341]
[1744849801391,0.063,131.24,131.23,28.63177455]
[1744849802494,0.063,131.24,131.23,36.25198334]
[1744849803393,0.063,131.24,131.23,54.9016322]
[1744849803574,1e-08,131.24,131.23,83.53340675]
[1744849803773,0.063,131.26,131.25,44.64964886]
[1744849803981,1e-08,131.26,131.25,101.91319796]
[1744849804182,0.03,131.29,131.25,102.33968267]
[1744849804383,0.03,131.29,131.28,54.63177455]
[1744849804592,0.03,131.29,131.28,62.24908107]
[1744849810280,0.03,131.29,131.24,7.7593]
[1744849810480,43.82473676,131.28,131.24,28.63177455]
[1744849811095,51.44247684,131.28,131.24,28.63177455]
[1744849811290,43.82473676,131.27,131.24,28.63177455]
[1744849811494,43.82473676,131.27,131.21,16.58]
[1744849811495,0.03,131.29,131.28,44.933972]
[1744849811802,0.03,131.39,131.34,32.0515]
[1744849811978,0.03,131.39,131.38,28.63177455]
[1744849812183,0.03,131.39,131.34,26.0]
[1744849812385,0.03,131.39,131.35,28.63177455]
[1744849813202,0.03,131.39,131.33,7.6141506]
[1744849813380,0.42648471,131.38,131.35,28.63177455]
[1744849813585,0.42648471,131.38,131.29,19.04062614]
[1744849813586,26.0,131.35,131.28,7.61730652]
[1744849813789,28.63177455,131.33,131.28,28.63177455]
[1744849813997,28.63177455,131.31,131.26,28.63177455]
[1744849814911,55.05825926,131.32,131.27,28.63177455]
[1744849815310,26.42648471,131.32,131.28,28.63177455]
[1744849815507,28.63177455,131.31,131.26,28.63177455]
[1744849815731,28.63177455,131.31,131.23,7.62020879]
[1744849815732,29.05825926,131.29,131.23,7.62020879]
[1744849816010,45.19177455,131.28,131.24,28.63177455]
[1744849816188,45.19177455,131.28,131.23,36.25198334]
[1744849816391,16.56,131.28,131.24,28.63177455]
[1744849817194,16.56,131.28,131.25,28.63177455]
[1744849818708,16.56,131.28,131.26,28.63177455]
[1744849818880,16.56,131.28,131.27,28.63177455]
[1744849819307,16.56,131.28,131.25,7.61864114]
[1744849819486,16.56,131.28,131.27,28.63177455]
[1744849820810,16.56,131.28,131.25,7.61864114]
[1744849820991,16.56,131.28,131.26,28.63177455]
[1744849821203,16.56,131.28,131.24,28.63177455]
[1744849821394,16.56,131.28,131.22,7.62078951]
[1744849821713,16.56,131.28,131.26,28.63177455]
[1744849821908,60.38473676,131.28,131.26,28.63177455]
[1744849822104,26.0,131.26,131.21,7.62130671]
[1744849822290,26.14216157,131.27,131.21,7.62130671]
[1744849822495,26.14216157,131.27,131.23,28.63177455]
[1744849823096,60.38473676,131.28,131.26,28.63177455]
[1744849824416,43.82473676,131.29,131.27,28.63177455]
[1744849824713,43.82473676,131.29,131.28,28.63177455]
[1744849825689,43.82473676,131.29,131.26,7.61811048]
[1744849825894,43.82473676,131.29,131.27,28.63177455]
[1744849826105,43.82473676,131.29,131.28,28.63177455]
[1744849826306,43.82473676,131.31,131.28,28.63177455]
[1744849826512,43.82473676,131.31,131.3,28.63177455]
[1744849826914,43.82473676,131.31,131.25,55.29838967]
[1744849827213,43.82473676,131.31,131.28,28.63177455]
[1744849827417,43.82473676,131.3,131.29,28.63177455]
[1744849828515,43.82473676,131.32,131.29,28.63177455]
[1744849828705,43.82473676,131.32,131.31,28.63177455]